fUSD/lending_fUSD_20240329
["ID","MTS","AMOUNT","RATE_DAILY","PERIOD"]
[320917375,1711707090164,-500.0,0.00050136,15]
[320917376,1711707090173,-521.8596918,0.00050136,120]
[320917377,1711707090183,-500.0,0.00050136,120]
[320917378,1711707090193,-500.0,0.00050136,120]
[320917379,1711707090202,-500.0,0.00050136,120]
[320917380,1711707090212,-500.0,0.00050136,120]
[320917381,1711707090222,-500.0,0.00050136,120]
[320917382,1711707090232,-500.0,0.00050136,120]
[320917383,1711707090242,-500.0,0.00050136,120]
[320917384,1711707090252,-166.17139912,0.00050136,120]
[320917385,1711707090261,-500.0,0.00050136,120]
[320917386,1711707090272,-500.0,0.00050136,120]
[320917387,1711707090282,-480.82012066,0.00050136,120]
[320917388,1711707090292,-500.0,0.00050136,120]
[320917389,1711707090302,-546.2461615,0.00050136,120]
[320917390,1711707090312,-500.0,0.00050136,120]
[320917391,1711707090321,-530.66086323,0.00050136,120]
[320917392,1711707090331,-528.16915916,0.00050136,120]
[320917393,1711707090340,-500.0,0.00050136,120]
[320917394,1711707090350,-500.0,0.00050136,120]
[320917395,1711707090359,-500.0,0.00050136,120]
[320917396,1711707090368,-500.0,0.00050136,120]
[320917397,1711707090379,-418.58364621,0.00050136,120]
[320917398,1711707090388,-541.48404154,0.00050136,120]
[320917399,1711707090398,-500.0,0.00050136,120]
[320917400,1711707090407,-500.0,0.00050136,120]
[320917401,1711707090417,-231.12216289,0.00050136,120]
[320917402,1711707090426,-500.0,0.00050136,120]
[320917403,1711707090436,-713.0,0.00050136,120]
[320917404,1711707090445,-500.0,0.00050136,120]
[320917405,1711707090455,-500.0,0.00050136,120]
[320917406,1711707090464,-500.0,0.00050136,120]
[320917407,1711707090475,-500.0,0.00050136,120]
[320917408,1711707090484,-500.0,0.00050136,120]
[320917409,1711707090494,-500.0,0.00050136,120]
[320917410,1711707090503,-203.61704557,0.00050136,120]
[320917411,1711707090512,-500.0,0.00050136,120]
[320917412,1711707090522,-500.0,0.00050136,120]
[320917413,1711707090531,-500.0,0.00050136,120]
[320917414,1711707090541,-500.0,0.00050136,120]
[320917415,1711707090550,-500.0,0.00050136,120]
[320917416,1711707090559,-423.39393008,0.00050136,120]
[320917417,1711707090569,-500.0,0.00050136,120]
[320917418,1711707090578,-522.68975338,0.00050136,120]
[320917419,1711707090587,-505.56351181,0.00050136,120]
[320917420,1711707090597,-527.48883996,0.00050136,120]
[320917421,1711707090606,-500.0,0.00050136,120]
[320917422,1711707090615,-208.17394117,0.00050136,120]
[320917423,1711707090627,-500.0,0.00050136,120]
[320917424,1711707090636,-500.0,0.00050136,120]
[320917425,1711707090647,-512.7795173,0.00050136,120]
[320917426,1711707090659,-531.49854022,0.00050136,120]
[320917427,1711707090668,-553.36064933,0.00050136,120]
[320917428,1711707090678,-525.91577695,0.00050136,120]
[320917429,1711707090687,-500.0,0.00050136,120]
[320917430,1711707090846,-500.0,0.00050136,120]
[320917431,1711707090858,-500.0,0.00050136,120]
[320917432,1711707090867,-500.0,0.00050136,120]
[320917433,1711707090877,-500.0,0.00050136,120]
[320917434,1711707090887,-511.20111498,0.00050136,120]
[320917435,1711707090896,-500.0,0.00050136,120]
[320917436,1711707090905,-500.0,0.00050136,120]
[320917437,1711707090914,-500.0,0.00050136,120]
[320917438,1711707090923,-500.0,0.00050136,120]
[320917439,1711707090933,-533.37702383,0.00050136,120]
[320917440,1711707090942,-500.0,0.00050136,120]
[320917441,1711707090952,-536.03864103,0.00050136,120]
[320917442,1711707090961,-500.0,0.00050136,120]
[320917443,1711707090970,-500.0,0.00050136,120]
[320917444,1711707090979,-241.55020973,0.00050136,120]
[320917445,1711707090988,-500.0,0.00050136,120]
[320917446,1711707090998,-500.0,0.00050136,120]
[320917447,1711707091007,-500.0,0.00050136,120]
[320917448,1711707091016,-500.0,0.00050136,120]
[320917449,1711707091026,-500.0,0.00050136,120]
[320917450,1711707091035,-615.02193496,0.00050136,120]
[320917451,1711707091044,-500.0,0.00050136,120]
[320917452,1711707091054,-500.0,0.00050136,120]
[320917453,1711707091063,-500.0,0.00050136,120]
[320917454,1711707091073,-511.87363865,0.00050136,120]
[320917455,1711707091083,-500.0,0.00050136,120]
[320917456,1711707091093,-500.0,0.00050136,120]
[320917457,1711707091102,-500.0,0.00050136,120]
[320917458,1711707091112,-500.0,0.00050136,120]
[320917459,1711707091121,-515.38,0.00050136,120]
[320917460,1711707091130,-500.0,0.00050136,120]
[320917461,1711707091140,-500.0,0.00050136,120]
[320917462,1711707091149,-453.6975145,0.00050136,120]
[320917463,1711707091159,-500.0,0.00050136,120]
[320917464,1711707091168,-726.93,0.00050136,120]
[320917465,1711707091177,-500.0,0.00050136,120]
[320917466,1711707091186,-500.0,0.00050136,120]
[320917467,1711707091196,-500.0,0.00050136,120]
[320917468,1711707091205,-500.0,0.00050136,120]
[320917469,1711707091214,-514.68327567,0.00050136,120]
[320917470,1711707091224,-500.0,0.00050136,120]
[320917471,1711707091233,-500.0,0.00050136,120]
[320917472,1711707091242,-500.0,0.00050136,120]
[320917473,1711707091252,-500.0,0.00050136,120]
[320917474,1711707091261,-500.0,0.00050136,120]
[320917475,1711707091271,-240.17656065,0.00050136,120]
[320917476,1711707091281,-500.0,0.00050136,120]
[320917477,1711707091291,-500.0,0.00050136,120]
[320917478,1711707091301,-500.0,0.00050136,120]
[320917479,1711707091311,-500.0,0.00050136,120]
[320917480,1711707091320,-500.0,0.00050136,120]
[320917481,1711707091330,-500.0,0.00050136,120]
[320917482,1711707091339,-500.0,0.00050136,120]
[320917483,1711707091349,-500.0,0.00050136,120]
[320917484,1711707091359,-500.0,0.00050136,120]
[320917485,1711707091369,-560.09,0.00050136,120]
[320917486,1711707091380,-500.0,0.00050136,120]
[320917487,1711707091390,-500.0,0.00050136,120]
[320917488,1711707091400,-500.0,0.00050136,120]
[320917489,1711707091409,-500.0,0.00050136,120]
[320917490,1711707091419,-530.60179658,0.00050136,120]
[320917491,1711707091428,-500.0,0.00050136,120]
[320917492,1711707091438,-532.04363507,0.00050136,120]
[320917493,1711707091447,-325.17025842,0.00050136,120]
[320917494,1711707091456,-626.21638725,0.00050136,120]
[320917495,1711707091465,-500.0,0.00050136,120]
[320917496,1711707091474,-500.0,0.00050136,120]
[320917497,1711707091484,-427.50431019,0.00050136,120]
[320917498,1711707091493,-529.98967203,0.00050136,120]
[320917499,1711707091502,-500.0,0.00050136,120]
[320917500,1711707091511,-500.0,0.00050136,120]
[320917501,1711707091520,-500.0,0.00050136,120]
[320917502,1711707091529,-500.0,0.00050136,120]
[320917503,1711707091539,-500.0,0.00050136,120]
[320917504,1711707091548,-500.0,0.00050136,120]
[320917505,1711707091557,-500.0,0.00050136,120]
[320917506,1711707091566,-500.0,0.00050136,120]
[320917507,1711707091576,-518.05815325,0.00050136,120]
[320917508,1711707091585,-500.0,0.00050136,120]
[320917509,1711707091594,-295.80788762,0.00050136,120]
[320917510,1711707091603,-500.0,0.00050136,120]
[320917511,1711707091613,-573.9468098,0.00050136,120]
[320917512,1711707091623,-500.0,0.00050136,120]
[320917513,1711707091632,-500.0,0.00050136,120]
[320917514,1711707091645,-500.0,0.00050136,120]
[320917515,1711707091654,-500.0,0.00050136,120]
[320917516,1711707091664,-500.0,0.00050136,120]
[320917517,1711707091673,-500.0,0.00050136,120]
[320917518,1711707091683,-500.0,0.00050136,120]
[320917519,1711707091692,-500.0,0.00050136,120]
[320917520,1711707091702,-508.45485814,0.00050136,120]
[320917521,1711707091711,-676.03,0.00050136,120]
[320917522,1711707091721,-500.0,0.00050136,120]
[320917523,1711707091731,-500.0,0.00050136,120]
[320917524,1711707091740,-519.53799023,0.00050136,2]
[320917525,1711707091750,-500.0,0.00050136,120]
[320917526,1711707091759,-512.36734248,0.00050136,120]
[320917527,1711707091769,-500.0,0.00050136,120]
[320917528,1711707091781,-500.0,0.00050136,120]
[320917529,1711707091791,-602.44,0.00050136,120]
[320917530,1711707091800,-500.0,0.00050136,120]
[320917531,1711707091809,-500.0,0.00050136,120]
[320917532,1711707091819,-745.16,0.00050136,120]
[320917533,1711707091830,-526.52128944,0.00050136,120]
[320917534,1711707091839,-500.0,0.00050136,120]
[320917535,1711707091849,-500.0,0.00050136,120]
[320917536,1711707091858,-500.0,0.00050136,120]
[320917537,1711707091868,-500.0,0.00050136,120]
[320917538,1711707091878,-500.0,0.00050136,120]
[320917539,1711707091888,-500.0,0.00050136,120]
[320917540,1711707091898,-500.0,0.00050136,120]
[320917541,1711707091907,-500.0,0.00050136,120]
[320917542,1711707091917,-500.0,0.00050136,7]
[320917543,1711707091926,-500.0,0.00050136,120]
[320917544,1711707091935,-500.0,0.00050136,120]
[320917545,1711707091945,-535.52146032,0.00050136,120]
[320917546,1711707091955,-500.0,0.00050136,120]
[320917547,1711707091964,-528.54601543,0.00050136,120]
[320917548,1711707091974,-568.76,0.00050136,120]
[320917549,1711707091983,-599.15,0.00050136,120]
[320917550,1711707091992,-500.0,0.00050136,120]
[320917551,1711707092001,-500.0,0.00050136,120]
[320917552,1711707092011,-624.26,0.00050136,120]
[320917553,1711707092021,-500.0,0.00050136,120]
[320917554,1711707092030,-500.0,0.00050136,120]
[320917555,1711707092040,-500.0,0.00050136,120]
[320917556,1711707092050,-516.27574672,0.00050136,120]
[320917557,1711707092060,-500.0,0.00050136,120]
[320917558,1711707092070,-500.0,0.00050136,120]
[320917559,1711707092080,-500.0,0.00050136,120]
[320917560,1711707092090,-500.0,0.00050136,120]
[320917561,1711707092100,-178.92969041,0.00050136,120]
[320917562,1711707092110,-500.0,0.00050136,120]
[320917563,1711707092120,-500.0,0.00050136,120]
[320917564,1711707092130,-500.0,0.00050136,120]
[320917565,1711707092141,-602.61953803,0.00050136,120]
[320917566,1711707092150,-500.0,0.00050136,120]
[320917567,1711707092160,-500.0,0.00050136,120]
[320917568,1711707092169,-500.0,0.00050136,120]
[320917569,1711707092179,-500.0,0.00050136,120]
[320917570,1711707092189,-500.0,0.00050136,120]
[320917571,1711707092198,-606.5701481,0.00050136,120]
[320917572,1711707092208,-500.0,0.00050136,120]
[320917573,1711707092218,-500.0,0.00050136,120]
[320917574,1711707092227,-500.0,0.00050136,120]
[320917575,1711707092237,-500.0,0.00050136,30]
[320917576,1711707092247,-500.0,0.00050136,120]
[320917577,1711707092256,-500.0,0.00050136,120]
[320917578,1711707092266,-500.0,0.00050136,120]
[320917579,1711707092275,-500.0,0.00050136,120]
[320917580,1711707092285,-513.21647345,0.00050136,120]
[320917581,1711707092296,-640.98516445,0.00050136,120]
[320917582,1711707092305,-500.0,0.00050136,120]
[320917583,1711707092315,-176.97494359,0.00050136,120]
[320917584,1711707092325,-500.0,0.00050136,120]
[320917585,1711707092334,-500.0,0.00050136,120]
[320917586,1711707092343,-500.0,0.00050136,120]
[320917587,1711707092353,-594.00579299,0.00050136,120]
[320917588,1711707092362,-500.0,0.00050136,120]
[320917589,1711707092372,-500.0,0.00050136,120]
[320917590,1711707092382,-500.0,0.00050136,120]
[320917591,1711707092391,-500.0,0.00050136,120]
[320917592,1711707092400,-533.69409205,0.00050136,120]
[320917593,1711707092409,-500.0,0.00050136,120]
[320917594,1711707092419,-500.0,0.00050136,120]
[320917595,1711707092428,-515.31507825,0.00050136,120]
[320917596,1711707092438,-500.0,0.00050136,120]
[320917597,1711707092447,-500.0,0.00050136,120]
[320917598,1711707092456,-504.71,0.00050136,120]
[320917599,1711707092466,-500.0,0.00050136,120]
[320917600,1711707092475,-500.0,0.00050136,120]
[320917601,1711707092485,-500.0,0.00050136,120]
[320917602,1711707092495,-500.0,0.00050136,120]
[320917603,1711707092505,-500.0,0.00050136,120]
[320917604,1711707092515,-500.0,0.00050136,120]
[320917605,1711707092524,-500.0,0.00050136,120]
[320917606,1711707092534,-340.35122254,0.00050136,120]
[320917607,1711707092544,-500.0,0.00050136,120]
[320917608,1711707092553,-500.0,0.00050136,120]
[320917609,1711707092563,-509.00926348,0.00050136,120]
[320917610,1711707092573,-601.94,0.00050136,120]
[320917611,1711707092583,-500.0,0.00050136,120]
[320917612,1711707092592,-555.93,0.00050136,120]
[320917613,1711707092602,-500.0,0.00050136,120]
[320917614,1711707092612,-500.0,0.00050136,120]
[320917615,1711707092622,-506.70453241,0.00050136,120]
[320917616,1711707092632,-572.69424067,0.00050136,120]
[320917617,1711707092646,-500.0,0.00050136,120]
[320917618,1711707092656,-500.0,0.00050136,120]
[320917619,1711707092666,-500.0,0.00050136,120]
[320917620,1711707092676,-500.0,0.00050136,120]
[320917621,1711707092824,-500.0,0.00050136,120]
[320917622,1711707092835,-500.0,0.00050136,120]
[320917623,1711707092845,-500.0,0.00050136,120]
[320917624,1711707092854,-500.0,0.00050136,120]
[320917625,1711707092864,-500.0,0.00050136,120]
[320917626,1711707092875,-500.0,0.00050136,120]
[320917627,1711707092885,-500.0,0.00050136,120]
[320917628,1711707092894,-500.0,0.00050136,120]
[320917629,1711707092904,-526.96808378,0.00050136,120]
[320917630,1711707092913,-500.0,0.00050136,120]
[320917631,1711707092922,-500.0,0.00050136,120]
[320917632,1711707092933,-500.0,0.00050136,120]
[320917633,1711707092942,-500.0,0.00050136,120]
[320917634,1711707092953,-500.0,0.00050136,120]
[320917635,1711707092962,-279.49256868,0.00050136,120]
[320917636,1711707092971,-500.0,0.00050136,120]
[320917637,1711707092981,-500.0,0.00050136,120]
[320917638,1711707092991,-500.0,0.00050136,120]
[320917639,1711707093001,-569.03027514,0.00050136,120]
[320917640,1711707093011,-500.0,0.00050136,120]
[320917641,1711707093022,-500.0,0.00050136,120]
[320917642,1711707093031,-680.59,0.00050136,120]
[320917643,1711707093041,-500.0,0.00050136,120]
[320917644,1711707093051,-500.0,0.00050136,120]
[320917645,1711707093062,-500.0,0.00050136,120]
[320917646,1711707093072,-500.0,0.00050136,120]
[320917647,1711707093082,-744.88,0.00050136,2]
[320917648,1711707093092,-377.12707385,0.00050136,120]
[320917649,1711707093101,-615.95349176,0.00050136,120]
[320917650,1711707093111,-500.0,0.00050136,120]
[320917651,1711707093122,-500.0,0.00050136,120]
[320917652,1711707093132,-851.59,0.00050136,120]
[320917653,1711707093142,-500.0,0.00050136,120]
[320917654,1711707093152,-500.0,0.00050136,120]
[320917655,1711707093162,-568.03999887,0.00050136,120]
[320917656,1711707093172,-500.0,0.00050136,120]
[320917657,1711707093181,-500.0,0.00050136,120]
[320917658,1711707093191,-500.0,0.00050136,120]
[320917659,1711707093201,-745.86,0.00050136,120]
[320917660,1711707093210,-500.0,0.00050136,120]
[320917661,1711707093219,-500.0,0.00050136,120]
[320917662,1711707093229,-250.08,0.00050136,120]
[320917663,1711707093239,-500.0,0.00050136,120]
[320917664,1711707093249,-520.38709821,0.00050136,120]
[320917665,1711707093259,-177.19491141,0.00050136,120]
[320917666,1711707093268,-500.0,0.00050136,2]
[320917667,1711707093277,-543.10924572,0.00050136,120]
[320917668,1711707093286,-537.41,0.00050136,120]
[320917669,1711707093296,-500.0,0.00050136,120]
[320917670,1711707093306,-363.66593546,0.00050136,120]
[320917671,1711707093315,-500.0,0.00050136,120]
[320917672,1711707093324,-500.0,0.00050136,120]
[320917673,1711707093334,-500.0,0.00050136,120]
[320917674,1711707093343,-532.98,0.00050136,120]
[320917675,1711707093352,-528.13095068,0.00050136,120]
[320917676,1711707093361,-500.0,0.00050136,120]
[320917677,1711707093370,-500.0,0.00050136,120]
[320917678,1711707093381,-526.73640527,0.00050136,120]
[320917679,1711707093390,-1156.54,0.00050136,120]
[320917680,1711707093400,-500.0,0.00050136,120]
[320917681,1711707093409,-500.0,0.00050136,120]
[320917682,1711707093418,-237.34115219,0.00050136,120]
[320917683,1711707093428,-559.20877696,0.00050136,120]
[320917684,1711707093437,-500.0,0.00050136,120]
[320917685,1711707093446,-608.4292864,0.00050136,120]
[320917686,1711707093455,-500.0,0.00050136,120]
[320917687,1711707093465,-500.0,0.00050136,120]
[320917688,1711707093475,-534.32658627,0.00050136,120]
[320917689,1711707093484,-500.0,0.00050136,120]
[320917690,1711707093493,-500.0,0.00050136,120]
[320917691,1711707093502,-529.10237229,0.00050136,120]
[320917692,1711707093511,-500.0,0.00050136,120]
[320917693,1711707093520,-531.09341587,0.00050136,120]
[320917694,1711707093530,-500.0,0.00050136,120]
[320917695,1711707093539,-500.0,0.00050136,120]
[320917696,1711707093549,-519.08863431,0.00050136,30]
[320917697,1711707093558,-500.0,0.00050136,120]
[320917698,1711707093567,-592.42,0.00050136,120]
[320917699,1711707093577,-500.0,0.00050136,120]
[320917700,1711707093586,-521.78307531,0.00050136,120]
[320917701,1711707093596,-500.0,0.00050136,120]
[320917702,1711707093606,-500.0,0.00050136,120]
[320917703,1711707093615,-722.38,0.00050136,120]
[320917704,1711707093626,-521.09150105,0.00050136,120]
[320917705,1711707093636,-509.29937212,0.00050136,120]
[320917706,1711707093646,-500.0,0.00050136,120]
[320917707,1711707093660,-500.0,0.00050136,120]
[320917708,1711707093669,-500.0,0.00050136,120]
[320917709,1711707093691,-500.0,0.00050136,120]
[320917710,1711707093706,-500.0,0.00050136,120]
[320917711,1711707093724,-500.0,0.00050136,120]
[320917712,1711707093744,-540.35,0.00050136,120]
[320917713,1711707093759,-550.39852283,0.00050136,120]
[320917714,1711707093776,-500.0,0.00050136,120]
[320917715,1711707093794,-500.0,0.00050136,120]
[320917716,1711707093812,-500.0,0.00050136,120]
[320917717,1711707093830,-500.0,0.00050136,120]
[320917718,1711707093847,-544.03368913,0.00050136,120]
[320917719,1711707093867,-500.0,0.00050136,120]
[320917720,1711707093890,-500.0,0.00050136,120]
[320917721,1711707093906,-500.0,0.00050136,120]
[320917722,1711707093919,-500.0,0.00050136,120]
[320917723,1711707093935,-500.0,0.00050136,120]
[320917724,1711707093952,-556.26020862,0.00050136,120]
[320917725,1711707093967,-557.18,0.00050136,120]
[320917726,1711707093984,-500.0,0.00050136,120]
[320917727,1711707093999,-500.0,0.00050136,120]
[320917728,1711707094014,-516.58212312,0.00050136,120]
[320917729,1711707094030,-500.0,0.00050136,120]
[320917730,1711707094045,-500.0,0.00050136,120]
[320917731,1711707094059,-500.0,0.00050136,120]
[320917732,1711707094074,-500.0,0.00050136,120]
[320917733,1711707094089,-500.0,0.00050136,120]
[320917734,1711707094105,-500.0,0.00050136,120]
[320917735,1711707094119,-500.0,0.00050136,120]
[320917736,1711707094134,-599.61441505,0.00050136,120]
[320917737,1711707094149,-500.0,0.00050136,120]
[320917738,1711707094163,-530.1401286,0.00050136,120]
[320917739,1711707094178,-500.0,0.00050136,120]
[320917740,1711707094193,-580.74,0.00050136,120]
[320917741,1711707094207,-500.0,0.00050136,120]
[320917742,1711707094221,-500.0,0.00050136,120]
[320917743,1711707094235,-529.27209086,0.00050136,120]
[320917744,1711707094250,-221.2323007,0.00050136,120]
[320917745,1711707094264,-500.0,0.00050136,120]
[320917746,1711707094279,-1538.82,0.00050136,120]
[320917747,1711707094292,-500.0,0.00050136,120]
[320917748,1711707094306,-500.0,0.00050136,120]
[320917749,1711707094320,-733.58,0.00050136,120]
[320917750,1711707094334,-500.0,0.00050136,120]
[320917751,1711707094348,-170.02540297,0.00050136,120]
[320917752,1711707094362,-500.0,0.00050136,120]
[320917753,1711707094377,-500.0,0.00050136,120]
[320917754,1711707094391,-1281.65,0.00050136,120]
[320917755,1711707094405,-586.62,0.00050136,120]
[320917756,1711707094419,-529.75967719,0.00050136,120]
[320917757,1711707094433,-500.0,0.00050136,120]
[320917758,1711707094447,-1120.28,0.00050136,120]
[320917759,1711707094461,-500.0,0.00050136,120]
[320917760,1711707094476,-500.0,0.00050136,120]
[320917761,1711707094490,-599.93,0.00050136,120]
[320917762,1711707094504,-1317.16,0.00050136,120]
[320917763,1711707094519,-4410.4,0.00050136,120]
[320917764,1711707094533,-1495.55,0.00050136,120]
[320917765,1711707094548,-500.0,0.00050136,120]
[320917766,1711707094562,-21196.2,0.00050136,120]
[320917767,1711707094576,-273.06308887,0.00050136,120]
[320917768,1711707094590,-500.0,0.00050136,120]
[320917769,1711707094604,-500.0,0.00050136,120]
[320917770,1711707094618,-1227.73,0.00050136,120]
[320917771,1711707094631,-500.0,0.00050136,7]
[320917772,1711707094647,-500.0,0.00050136,120]
[320917773,1711707094661,-588.71000408,0.00050136,120]
[320917774,1711707094676,-1229.95,0.00050136,120]
[320917775,1711707094691,-500.0,0.00050136,120]
[320917776,1711707094706,-500.0,0.00050136,120]
[320917777,1711707094720,-500.0,0.00050136,120]
[320917778,1711707094738,-1803.39,0.00050136,120]
[320917779,1711707094753,-500.0,0.00050136,120]
[320917780,1711707094768,-1577.81,0.00050136,120]
[320917781,1711707094781,-1060.45,0.00050136,120]
[320917782,1711707094796,-500.0,0.00050136,120]
[320917783,1711707094811,-550.51888371,0.00050136,120]
[320917784,1711707094826,-500.0,0.00050136,120]
[320917785,1711707094840,-500.0,0.00050136,120]
[320917786,1711707094855,-9587.95,0.00050136,120]
[320917787,1711707094870,-860.13,0.00050136,120]
[320917788,1711707094887,-523.01142756,0.00050136,120]
[320917789,1711707094901,-500.0,0.00050136,120]
[320917790,1711707094916,-2161.78,0.00050136,120]
[320917791,1711707094930,-966.69,0.00050136,120]
[320917792,1711707094944,-1285.99,0.00050136,120]
[320917793,1711707094958,-500.0,0.00050136,120]
[320917794,1711707094974,-500.0,0.00050136,120]
[320917795,1711707094988,-4270.37,0.00050136,120]
[320917796,1711707095003,-500.0,0.00050136,120]
[320917797,1711707095187,-1701.83,0.00050136,120]
[320917798,1711707095198,-421.61858222,0.00050136,120]
[320917799,1711707095209,-542.49,0.00050136,120]
[320917800,1711707095219,-500.0,0.00050136,120]
[320917801,1711707095230,-2656.93,0.00050136,120]
[320917802,1711707095240,-1021.55,0.00050136,120]
[320917803,1711707095251,-500.0,0.00050136,120]
[320917804,1711707095262,-944.56,0.00050136,120]
[320917805,1711707095273,-500.0,0.00050136,120]
[320917806,1711707095284,-1033.6,0.00050136,120]
[320917807,1711707095295,-2596.43,0.00050136,120]
[320917808,1711707095304,-815.59,0.00050136,120]
[320917809,1711707095315,-500.0,0.00050136,120]
[320917810,1711707095325,-500.0,0.00050136,120]
[320917811,1711707095335,-500.0,0.00050136,120]
[320917812,1711707095345,-868.76,0.00050136,120]
[320917813,1711707095355,-649.47,0.00050136,120]
[320917814,1711707095364,-1186.75,0.00050136,120]
[320917815,1711707095374,-1617.32,0.00050136,120]
[320917816,1711707095386,-696.46,0.00050136,120]
[320917817,1711707095396,-582.24,0.00050136,120]
[320917818,1711707095406,-926.41,0.00050136,120]
[320917819,1711707095417,-500.0,0.00050136,120]
[320917820,1711707095428,-500.0,0.00050136,120]
[320917821,1711707095438,-594.17921237,0.00050136,120]
[320917822,1711707095448,-695.54,0.00050136,120]
[320917823,1711707095458,-1345.46,0.00050136,120]
[320917824,1711707095469,-3650.97,0.00050136,120]
[320917825,1711707095480,-1899.41,0.00050136,120]
[320917826,1711707095489,-614.07,0.00050136,120]
[320917827,1711707095500,-500.0,0.00050136,120]
[320917828,1711707095510,-500.0,0.00050136,120]
[320917829,1711707095519,-1552.25,0.00050136,120]
[320917830,1711707095530,-708.04,0.00050136,120]
[320917831,1711707095540,-1123.35,0.00050136,120]
[320917832,1711707095550,-1154.17,0.00050136,120]
[320917833,1711707095560,-500.0,0.00050136,120]
[320917834,1711707095570,-500.0,0.00050136,120]
[320917835,1711707095581,-765.28,0.00050136,120]
[320917836,1711707095591,-500.0,0.00050136,120]
[320917837,1711707095601,-500.0,0.00050136,120]
[320917838,1711707095611,-3507.52,0.00050136,120]
[320917839,1711707095621,-1463.06,0.00050136,120]
[320917840,1711707095633,-7619.28,0.00050136,120]
[320917841,1711707095644,-500.0,0.00050136,120]
[320917842,1711707095658,-500.0,0.00050136,120]
[320917843,1711707095668,-533.01713969,0.00050136,120]
[320917844,1711707095679,-1367.82,0.00050136,120]
[320917845,1711707095690,-613.99,0.00050136,120]
[320917846,1711707095700,-1455.5,0.00050136,120]
[320917847,1711707095710,-547.6,0.00050136,120]
[320917848,1711707095721,-1145.85,0.00050136,120]
[320917849,1711707095733,-3472.6,0.00050136,120]
[320917850,1711707095743,-1014.79,0.00050136,120]
[320917851,1711707095754,-500.0,0.00050136,120]
[320917852,1711707095764,-500.0,0.00050136,120]
[320917853,1711707095776,-1073.63,0.00050136,120]
[320917854,1711707095786,-1834.53,0.00050136,120]
[320917855,1711707095796,-2108.68,0.00050136,120]
[320917856,1711707095807,-500.0,0.00050136,120]
[320917857,1711707095833,-12623.99,0.00050136,120]
[320917858,1711707095844,-1236.06,0.00050136,120]
[320917859,1711707095855,-1337.66,0.00050136,120]
[320917860,1711707095866,-500.0,0.00050136,120]
[320917861,1711707095878,-500.0,0.00050136,120]
[320917862,1711707095889,-605.01214842,0.00050136,120]
[320917863,1711707095900,-545.14563649,0.00050136,120]
[320917864,1711707095910,-500.0,0.00050136,120]
[320917865,1711707095923,-513.36,0.00050136,120]
[320917866,1711707095934,-710.94,0.00050136,120]
[320917867,1711707095944,-1108.55,0.00050136,120]
[320917868,1711707095955,-500.0,0.00050136,120]
[320917869,1711707095966,-500.0,0.00050136,120]
[320917870,1711707095978,-500.0,0.00050136,120]
[320917871,1711707095989,-1513.08,0.00050136,120]
[320917872,1711707095999,-1029.0,0.00050136,120]
[320917873,1711707096008,-532.34,0.00050136,120]
[320917874,1711707096019,-500.0,0.00050136,120]